fUSD/lending_fUSD_20260112
["ID","MTS","AMOUNT","RATE_DAILY","PERIOD"]
[401407562,1768188645569,-500.32712274,0.00017073,2]
[401407563,1768188645580,-500.0,0.00017073,2]
[401407564,1768188645592,-500.83788468,0.00017073,2]
[401407565,1768188645603,-500.26791262,0.00017073,2]
[401407566,1768188645615,-500.19211788,0.00017073,2]
[401407567,1768188645626,-500.0,0.00017073,2]
[401407568,1768188645638,-500.38035534,0.00017073,2]
[401407569,1768188645648,-647.42016729,0.00017073,2]
[401407570,1768188645660,-500.0,0.00017073,2]
[401407571,1768188645671,-500.84213941,0.00017073,2]
[401407572,1768188645682,-350.68764993,0.00017073,2]
[401407573,1768188645694,-30000.0,0.0001708,2]
[401407574,1768188645705,-350.68764993,0.00017091,2]
[401407575,1768188645716,-1777.0,0.000171,2]
[401407576,1768188645728,-150.0,0.000171,2]
[401407577,1768188645739,-150.0,0.000171,2]
[401407578,1768188645752,-150.0,0.000171,2]
[401407579,1768188645763,-150.0,0.000171,2]
[401407580,1768188645774,-150.0,0.000171,2]
[401407581,1768188645785,-150.0,0.000171,2]
[401407582,1768188645799,-150.0,0.000171,2]
[401407583,1768188645810,-150.0,0.000171,2]
[401407584,1768188645822,-350.68764993,0.00017109,2]
[401407585,1768188645834,-350.68764993,0.00017127,2]
[401407586,1768188645846,-1073.4,0.00017138,2]
[401407587,1768188645857,-350.68764993,0.00017145,2]
[401407588,1768188645868,-782.94943236,0.00017152,2]
[401407589,1768188645879,-350.68764993,0.00017164,2]
[401407590,1768188645890,-150.0,0.00017169,2]
[401407591,1768188645901,-166.35,0.00017178,2]
[401407592,1768188645912,-467.15,0.00017178,2]
[401407593,1768188645923,-325.87,0.00017178,2]
[401407594,1768188645934,-171.53,0.00017178,2]
[401407595,1768188645946,-305.42,0.00017178,2]
[401407596,1768188645956,-467.15,0.00017178,2]
[401407597,1768188645967,-157.73,0.00017178,2]
[401407598,1768188645978,-467.15,0.00017178,2]
[401407599,1768188645990,-171.53,0.00017178,2]
[401407600,1768188646000,-171.53,0.00017178,2]
[401407601,1768188646012,-467.15,0.00017178,2]
[401407602,1768188646023,-171.53,0.00017178,2]
[401407603,1768188646033,-467.15,0.00017178,2]
[401407604,1768188646045,-171.53,0.00017178,2]
[401407605,1768188646056,-1021.61,0.00017178,2]
[401407606,1768188646067,-350.68764993,0.00017182,2]
[401407607,1768188646077,-350.68764993,0.000172,2]
[401407608,1768188646088,-5888.0,0.00017202,2]
[401407609,1768188646099,-5888.0,0.00017208,2]
[401407610,1768188646113,-350.68764993,0.00017218,2]
[401407611,1768188646125,-150.0,0.00017229,2]
[401407612,1768188646136,-150.0,0.00017229,2]
[401407613,1768188646148,-1073.4,0.00017233,2]
[401407615,1768188646852,-350.68764993,0.00017236,2]
[401407616,1768188646886,-150.0,0.0001725,2]
[401407617,1768188646896,-350.68764993,0.00017255,2]
[401407618,1768188646907,-300.0,0.0001726,3]
[401407619,1768188646917,-350.68764993,0.00017273,2]
[401407620,1768188646927,-150.0,0.0001728,2]
[401407621,1768188646938,-350.68764993,0.00017291,2]
[401407622,1768188646949,-317.89217191,0.000173,2]
[401407623,1768188646960,-14000.0,0.000173,6]
[401407624,1768188646970,-150.0,0.00017308,2]
[401407625,1768188646980,-350.68764993,0.00017309,2]
[401407626,1768188646989,-2987.79350318,0.00017318,2]
[401407627,1768188646999,-595.37131296,0.00017321,2]
[401407628,1768188647009,-5888.0,0.00017325,2]
[401407629,1768188647018,-150.0,0.00017325,2]
[401407630,1768188647027,-150.0,0.00017325,2]
[401407631,1768188647037,-350.68764993,0.00017327,2]
[401407632,1768188647047,-1073.4,0.00017329,2]
[401407633,1768188647057,-1777.0,0.0001733,2]
[401407634,1768188647067,-287.28,0.00017336,2]
[401407635,1768188647076,-1777.0,0.00017343,2]
[401407636,1768188647086,-350.68764993,0.00017345,2]
[401407637,1768188647096,-150.0,0.00017357,2]
[401407638,1768188647105,-150.0,0.00017357,2]
[401407639,1768188647115,-350.68764993,0.00017364,2]
[401407640,1768188647126,-11952.36354964,0.00017381,2]
[401407641,1768188647136,-350.68764993,0.00017382,2]
[401407642,1768188647146,-1777.0,0.00017382,2]
[401407643,1768188647156,-231.49,0.00017383,2]
[401407644,1768188647166,-150.0,0.000174,2]
[401407645,1768188647176,-350.68764993,0.000174,2]
[401407646,1768188647186,-150.0,0.000174,2]
[401407647,1768188647195,-150.0,0.000174,2]
[401407648,1768188647205,-1000.0,0.000174,2]
[401407649,1768188647215,-17500.0,0.000174,6]
[401407650,1768188647224,-265.14,0.00017401,2]
[401407651,1768188647234,-4021.426,0.00017401,2]
[401407652,1768188647243,-500.0,0.00017402,2]
[401407653,1768188647253,-551.14146089,0.00017402,2]
[401407654,1768188647263,-218657.5713421,0.00017403,2]
[401407655,1768188647273,-350.68764993,0.00017418,2]
[401407656,1768188647282,-158.73335703,0.00017421,2]
[401407657,1768188647292,-1073.4,0.00017425,2]
[401407658,1768188647302,-9767.4862307,0.00017432,2]
[401407659,1768188647313,-2987.79350316,0.00017434,2]
[401407660,1768188647323,-350.68764993,0.00017436,2]
[401407661,1768188647333,-150.0,0.00017446,2]
[401407662,1768188647343,-150.87,0.00017452,2]
[401407663,1768188647352,-150.0,0.00017452,2]
[401407664,1768188647361,-150.0,0.00017452,2]
[401407665,1768188647371,-350.68764993,0.00017455,2]
[401407666,1768188647381,-150.0,0.0001746,2]
[401407667,1768188647391,-154.087793,0.00017463,2]
[401407668,1768188647401,-500.0,0.00017463,2]
[401407669,1768188647411,-150.0,0.00017463,2]
[401407670,1768188647421,-150.0,0.00017463,2]
[401407671,1768188647430,-150.0,0.00017463,2]
[401407672,1768188647440,-500.0,0.00017463,2]
[401407673,1768188647449,-150.0,0.00017463,2]
[401407674,1768188647458,-150.0,0.00017463,2]
[401407675,1768188647468,-150.0,0.00017463,2]
[401407676,1768188647478,-350.68764993,0.00017473,2]
[401407677,1768188647487,-150.0,0.00017486,2]
[401407678,1768188647497,-150.0,0.00017486,2]
[401407679,1768188647506,-350.68764993,0.00017491,2]
[401407680,1768188647517,-469.78735424,0.00017494,2]
[401407681,1768188647527,-2000.0,0.000175,2]
[401407682,1768188647537,-1601.85016191,0.000175,2]
[401407683,1768188647546,-3500.0,0.000175,6]
[401407684,1768188647556,-350.68764993,0.00017509,2]
[401407685,1768188647565,-1330.0,0.00017511,2]
[401407686,1768188647575,-602.87382707,0.00017518,2]
[401407687,1768188647584,-150.0,0.00017518,2]
[401407688,1768188647594,-150.0,0.00017518,2]
[401407689,1768188647603,-150.0,0.00017518,2]
[401407690,1768188647612,-500.0,0.00017518,2]
[401407691,1768188647621,-150.96535916,0.00017518,2]
[401407692,1768188647630,-204.15967263,0.00017518,2]
[401407693,1768188647639,-160.92556746,0.00017518,2]
[401407694,1768188647648,-1073.4,0.00017521,2]
[401407695,1768188647658,-350.68764993,0.00017527,2]
[401407696,1768188647668,-300.0,0.00017534,3]
[401407697,1768188647677,-823.0,0.00017535,2]
[401407698,1768188647691,-500.0,0.00017536,2]
[401407699,1768188647700,-350.68764993,0.00017545,2]
[401407700,1768188647710,-150.0,0.0001755,2]
[401407701,1768188647721,-150.0,0.0001755,2]
[401407702,1768188647731,-150.0,0.0001755,2]
[401407703,1768188647743,-150.0,0.0001755,2]
[401407704,1768188647756,-2987.79350316,0.00017551,2]
[401407705,1768188647767,-350.68764993,0.00017564,2]
[401407706,1768188647776,-201.7434438,0.00017573,2]
[401407707,1768188647786,-150.0,0.00017573,2]
[401407708,1768188647797,-296.09401039,0.00017573,2]
[401407709,1768188647808,-282.10315697,0.00017573,2]
[401407710,1768188647820,-664.1,0.00017575,2]
[401407711,1768188647832,-350.68764993,0.00017582,2]
[401407712,1768188647841,-250.0,0.00017583,2]
[401407713,1768188647851,-661.57,0.00017584,2]
[401407714,1768188647860,-661.95,0.00017584,2]
[401407715,1768188647870,-150.0,0.00017585,2]
[401407716,1768188647885,-350.68764993,0.000176,2]
[401407717,1768188647896,-3500.0,0.000176,6]
[401407718,1768188647908,-301.93,0.00017601,2]
[401407719,1768188647919,-302.24,0.00017601,2]
[401407720,1768188647929,-150.0,0.00017614,2]
[401407721,1768188647938,-150.0,0.00017614,2]
[401407722,1768188647948,-1073.4,0.00017617,2]
[401407723,1768188647957,-350.68764993,0.00017618,2]
[401407724,1768188647968,-501.81552952,0.00017621,2]
[401407725,1768188647980,-604.83613644,0.00017621,2]
[401407726,1768188647990,-1002.68294103,0.00017621,2]
[401407727,1768188648002,-1001.39881462,0.00017621,2]
[401407728,1768188648013,-501.68963282,0.00017621,2]
[401407729,1768188648023,-1000.0,0.00017621,2]
[401407730,1768188648033,-500.52073568,0.00017621,2]
[401407731,1768188648044,-1000.0,0.00017621,2]
[401407732,1768188648055,-1000.0,0.00017621,2]
[401407733,1768188648065,-502.50985622,0.00017621,2]
[401407734,1768188648080,-1000.0,0.00017621,2]
[401407735,1768188648091,-1002.11848052,0.00017621,2]
[401407736,1768188648102,-1000.0,0.00017621,2]
[401407737,1768188648111,-1000.0,0.00017621,2]
[401407738,1768188648121,-150.0,0.00017627,2]
[401407739,1768188648133,-239.44755982,0.0001763,3]
[401407740,1768188648142,-350.68764993,0.00017636,2]
[401407741,1768188648152,-150.0,0.0001764,2]
[401407742,1768188648162,-2526.34474309,0.0001764,2]
[401407743,1768188648172,-350.68764993,0.00017655,2]
[401407744,1768188648184,-1336.0,0.00017655,2]
[401407745,1768188648194,-2987.79350316,0.00017667,2]
[401407746,1768188648203,-350.68764993,0.00017673,2]
[401407747,1768188648213,-1777.0,0.00017682,2]
[401407748,1768188648222,-178.73,0.00017682,2]
[401407749,1768188648232,-350.68764993,0.00017691,2]
[401407750,1768188648242,-150.0,0.000177,2]
[401407751,1768188648252,-150.0,0.000177,2]
[401407752,1768188648261,-162.0,0.000177,2]
[401407753,1768188648270,-780.28325037,0.000177,2]
[401407754,1768188648280,-3500.0,0.000177,6]
[401407755,1768188648290,-403.0,0.000177,5]
[401407756,1768188648299,-158018.86338473,0.00017706,2]
[401407757,1768188648310,-350.68764993,0.00017709,2]
[401407758,1768188648320,-3292.0,0.00017712,2]
[401407759,1768188648330,-1073.4,0.00017713,2]
[401407760,1768188648341,-1047.04298225,0.0001772,2]
[401407761,1768188648351,-150.0,0.0001772,2]
[401407762,1768188648361,-150.0,0.00017723,2]
[401407763,1768188648372,-350.68764993,0.00017727,2]
[401407764,1768188648381,-262.49854168,0.00017729,2]
[401407765,1768188648390,-257050.49498623,0.0001773,2]
[401407766,1768188648400,-363032.01685708,0.0001773,2]
[401407767,1768188648410,-469755.7821,0.0001773,2]
[401407768,1768188648421,-151.0,0.0001773,2]
[401407769,1768188648431,-151.0,0.0001773,2]
[401407770,1768188648441,-151.0,0.0001773,2]
[401407771,1768188648450,-378.862944,0.0001773,2]
[401407772,1768188648460,-475.742154,0.0001773,2]
[401407773,1768188648480,-378.862944,0.0001773,2]
[401407774,1768188648491,-378.862944,0.0001773,2]
[401407775,1768188648502,-475.742154,0.0001773,2]
[401407776,1768188648513,-151.0,0.0001773,2]
[401407777,1768188648523,-151.0,0.0001773,2]
[401407778,1768188648534,-475.742154,0.0001773,2]
[401407779,1768188648544,-378.862944,0.0001773,2]
[401407780,1768188648554,-193.153439,0.0001773,2]
[401407781,1768188648564,-151.0,0.0001773,2]
[401407782,1768188648575,-475.742154,0.0001773,2]
[401407783,1768188648585,-193.153439,0.0001773,2]
[401407784,1768188648595,-193.153439,0.0001773,2]
[401407785,1768188648605,-151.0,0.0001773,2]
[401407786,1768188648614,-193.153439,0.0001773,2]
[401407787,1768188648624,-151.0,0.0001773,2]
[401407788,1768188648634,-151.0,0.0001773,2]
[401407789,1768188648644,-1619.066186,0.0001773,2]
[401407790,1768188648655,-323.444424,0.0001773,2]
[401407791,1768188648665,-1619.066186,0.0001773,2]
[401407792,1768188648677,-323.444424,0.0001773,2]
[401407793,1768188648687,-1619.066186,0.0001773,2]
[401407794,1768188648697,-1619.066186,0.0001773,2]
[401407795,1768188648707,-323.444424,0.0001773,2]
[401407796,1768188648717,-323.444424,0.0001773,2]
[401407797,1768188648727,-151.0,0.0001773,2]
[401407798,1768188648738,-151.0,0.0001773,2]
[401407799,1768188648748,-536.096762,0.0001773,2]
[401407800,1768188648761,-151.0,0.0001773,2]
[401407801,1768188648771,-536.096762,0.0001773,2]
[401407802,1768188648782,-413.911364,0.0001773,2]
[401407803,1768188648794,-151.0,0.0001773,2]
[401407804,1768188648804,-536.096762,0.0001773,2]
[401407805,1768188648815,-413.911364,0.0001773,2]
[401407806,1768188648826,-536.096762,0.0001773,2]
[401407807,1768188648837,-413.911364,0.0001773,2]
[401407808,1768188648847,-413.911364,0.0001773,2]
[401407809,1768188648857,-151.0,0.0001773,2]
[401407810,1768188648867,-311.163043,0.0001773,2]
[401407811,1768188648877,-151.0,0.0001773,2]
[401407812,1768188648887,-311.163043,0.0001773,2]
[401407813,1768188648897,-151.0,0.0001773,2]
[401407814,1768188648907,-151.0,0.0001773,2]
[401407815,1768188648917,-311.163043,0.0001773,2]
[401407816,1768188648927,-151.0,0.0001773,2]
[401407817,1768188648936,-311.163043,0.0001773,2]
[401407818,1768188648946,-492.569989,0.0001773,2]
[401407819,1768188648956,-492.569989,0.0001773,2]
[401407820,1768188648966,-151.0,0.0001773,2]
[401407821,1768188648976,-151.0,0.0001773,2]
[401407822,1768188648985,-151.0,0.0001773,2]
[401407823,1768188648995,-492.569989,0.0001773,2]
[401407824,1768188649005,-492.569989,0.0001773,2]
[401407825,1768188649015,-777.804847,0.0001773,2]
[401407826,1768188649031,-404.421894,0.0001773,2]
[401407827,1768188649042,-151.0,0.0001773,2]
[401407828,1768188649052,-404.421894,0.0001773,2]
[401407829,1768188649062,-777.804847,0.0001773,2]
[401407830,1768188649072,-151.0,0.0001773,2]
[401407831,1768188649082,-404.421894,0.0001773,2]
[401407832,1768188649093,-777.804847,0.0001773,2]
[401407833,1768188649103,-151.0,0.0001773,2]
[401407834,1768188649113,-151.0,0.0001773,2]
[401407835,1768188649123,-1088.696282,0.0001773,2]
[401407836,1768188649134,-404.421894,0.0001773,2]
[401407837,1768188649145,-777.804847,0.0001773,2]
[401407838,1768188649156,-151.0,0.0001773,2]
[401407839,1768188649167,-1088.696282,0.0001773,2]
[401407840,1768188649177,-866.607694,0.0001773,2]
[401407841,1768188649187,-210.611627,0.0001773,2]
[401407842,1768188649344,-866.607694,0.0001773,2]
[401407843,1768188649355,-1088.696282,0.0001773,2]
[401407844,1768188649365,-210.611627,0.0001773,2]
[401407845,1768188649375,-866.607694,0.0001773,2]
[401407846,1768188649385,-1088.696282,0.0001773,2]
[401407847,1768188649394,-210.611627,0.0001773,2]
[401407848,1768188649404,-866.607694,0.0001773,2]
[401407849,1768188649413,-151.0,0.0001773,2]
[401407850,1768188649425,-210.611627,0.0001773,2]
[401407851,1768188649435,-151.0,0.0001773,2]
[401407852,1768188649445,-151.0,0.0001773,2]
[401407853,1768188649455,-151.0,0.0001773,2]
[401407854,1768188649465,-151.0,0.0001773,2]
[401407855,1768188649474,-394.351111,0.0001773,2]
[401407856,1768188649485,-394.351111,0.0001773,2]
[401407857,1768188649495,-394.351111,0.0001773,2]
[401407858,1768188649505,-394.351111,0.0001773,2]
[401407859,1768188649519,-151.0,0.0001773,2]
[401407860,1768188649528,-883.673582,0.0001773,2]
[401407861,1768188649538,-883.673582,0.0001773,2]
[401407862,1768188649550,-883.673582,0.0001773,2]
[401407863,1768188649559,-876.570737,0.0001773,2]
[401407864,1768188649570,-883.673582,0.0001773,2]
[401407865,1768188649580,-876.570737,0.0001773,2]
[401407866,1768188649588,-876.570737,0.0001773,2]
[401407867,1768188649597,-585.678073,0.0001773,2]
[401407868,1768188649607,-876.570737,0.0001773,2]
[401407869,1768188649617,-585.678073,0.0001773,2]
[401407870,1768188649628,-585.678073,0.0001773,2]
[401407871,1768188649638,-585.678073,0.0001773,2]
[401407872,1768188649649,-151.0,0.0001773,2]
[401407873,1768188649659,-151.0,0.0001773,2]
[401407874,1768188649668,-151.0,0.0001773,2]
[401407875,1768188649678,-151.0,0.0001773,2]
[401407876,1768188649687,-151.0,0.0001773,2]
[401407877,1768188649697,-151.0,0.0001773,2]
[401407878,1768188649706,-151.0,0.0001773,2]
[401407879,1768188649716,-151.0,0.0001773,2]
[401407880,1768188649726,-151.0,0.0001773,2]
[401407881,1768188649735,-1276.752068,0.0001773,2]
[401407882,1768188649745,-151.0,0.0001773,2]
[401407883,1768188649759,-329.021696,0.0001773,2]
[401407884,1768188649768,-151.0,0.0001773,2]
[401407885,1768188649777,-151.0,0.0001773,2]
[401407886,1768188649786,-949.908812,0.0001773,2]
[401407887,1768188649796,-258.065145,0.0001773,2]
[401407888,1768188649805,-1276.752068,0.0001773,2]
[401407889,1768188649815,-329.021696,0.0001773,2]
[401407890,1768188649824,-151.0,0.0001773,2]
[401407891,1768188649834,-1276.752068,0.0001773,2]
[401407892,1768188649843,-949.908812,0.0001773,2]
[401407893,1768188649853,-258.065145,0.0001773,2]
[401407894,1768188649862,-151.0,0.0001773,2]
[401407895,1768188649872,-329.021696,0.0001773,2]
[401407896,1768188649883,-151.0,0.0001773,2]
[401407897,1768188649893,-258.065145,0.0001773,2]
[401407898,1768188649903,-1276.752068,0.0001773,2]
[401407899,1768188649915,-949.908812,0.0001773,2]
[401407900,1768188649926,-258.065145,0.0001773,2]
[401407901,1768188649935,-329.021696,0.0001773,2]
[401407902,1768188649946,-151.0,0.0001773,2]
[401407903,1768188649955,-949.908812,0.0001773,2]
[401407904,1768188649965,-187.899798,0.0001773,2]
[401407905,1768188649976,-970.748749,0.0001773,2]
[401407906,1768188649988,-157.349654,0.0001773,2]
[401407907,1768188649997,-1159.429831,0.0001773,2]
[401407908,1768188650007,-970.748749,0.0001773,2]
[401407909,1768188650017,-1159.429831,0.0001773,2]
[401407910,1768188650027,-970.748749,0.0001773,2]
[401407911,1768188650038,-1159.429831,0.0001773,2]
[401407912,1768188650049,-151.0,0.0001773,2]
[401407913,1768188650060,-970.748749,0.0001773,2]
[401407914,1768188650070,-895.101573,0.0001773,2]
[401407915,1768188650080,-1159.429831,0.0001773,2]
[401407916,1768188650089,-151.0,0.0001773,2]
[401407917,1768188650099,-895.101573,0.0001773,2]
[401407918,1768188650109,-202.183274,0.0001773,2]
[401407919,1768188650119,-151.0,0.0001773,2]
[401407920,1768188650129,-895.101573,0.0001773,2]
[401407921,1768188650139,-253.15414,0.0001773,2]
[401407922,1768188650148,-202.183274,0.0001773,2]
[401407923,1768188650158,-895.101573,0.0001773,2]
[401407924,1768188650168,-202.183274,0.0001773,2]
[401407925,1768188650178,-202.183274,0.0001773,2]
[401407926,1768188650189,-2544.397561,0.0001773,2]
[401407927,1768188650199,-2544.397561,0.0001773,2]
[401407928,1768188650209,-1647.039821,0.0001773,2]
[401407929,1768188650219,-2544.397561,0.0001773,2]
[401407930,1768188650229,-1647.039821,0.0001773,2]
[401407931,1768188650239,-2544.397561,0.0001773,2]
[401407932,1768188650250,-1647.039821,0.0001773,2]
[401407933,1768188650260,-1647.039821,0.0001773,2]
[401407934,1768188650270,-151.0,0.0001773,2]
[401407935,1768188650279,-151.0,0.0001773,2]
[401407936,1768188650289,-151.0,0.0001773,2]
[401407937,1768188650298,-151.0,0.0001773,2]
[401407938,1768188650307,-151.0,0.0001773,2]
[401407939,1768188650317,-151.0,0.0001773,2]
[401407940,1768188650326,-151.0,0.0001773,2]
[401407941,1768188650335,-151.0,0.0001773,2]
[401407942,1768188650344,-151.0,0.0001773,2]
[401407943,1768188650354,-151.0,0.0001773,2]
[401407944,1768188650363,-151.0,0.0001773,2]
[401407945,1768188650372,-151.0,0.0001773,2]
[401407946,1768188650382,-151.0,0.0001773,2]
[401407947,1768188650391,-1767.548746,0.0001773,2]
[401407948,1768188650400,-501.106021,0.0001773,2]
[401407949,1768188650409,-1767.548746,0.0001773,2]
[401407950,1768188650419,-151.0,0.0001773,2]
[401407951,1768188650428,-151.0,0.0001773,2]
[401407952,1768188650438,-402.021243,0.0001773,2]
[401407953,1768188650447,-501.106021,0.0001773,2]
[401407954,1768188650456,-1767.548746,0.0001773,2]
[401407955,1768188650465,-151.0,0.0001773,2]
[401407956,1768188650475,-151.0,0.0001773,2]
[401407957,1768188650484,-151.0,0.0001773,2]
[401407958,1768188650493,-402.021243,0.0001773,2]
[401407959,1768188650502,-501.106021,0.0001773,2]
[401407960,1768188650511,-1767.548746,0.0001773,2]
[401407961,1768188650520,-151.0,0.0001773,2]
[401407962,1768188650529,-151.0,0.0001773,2]
[401407963,1768188650538,-151.0,0.0001773,2]
[401407964,1768188650547,-402.021243,0.0001773,2]
[401407965,1768188650556,-297.170586,0.0001773,2]
[401407966,1768188650565,-501.106021,0.0001773,2]
[401407967,1768188650574,-151.0,0.0001773,2]
[401407968,1768188650583,-283.03324,0.0001773,2]
[401407969,1768188650592,-297.170586,0.0001773,2]
[401407970,1768188650601,-151.0,0.0001773,2]
[401407971,1768188650610,-179.570681,0.0001773,2]
[401407972,1768188650619,-402.021243,0.0001773,2]
[401407973,1768188650628,-151.0,0.0001773,2]
[401407974,1768188650637,-464.411102,0.0001773,2]
[401407975,1768188650644,-878.078272,0.0001773,2]
[401407976,1768188650652,-297.170586,0.0001773,2]
[401407977,1768188650660,-151.0,0.0001773,2]
[401407978,1768188650668,-464.411102,0.0001773,2]
[401407979,1768188650677,-878.078272,0.0001773,2]
[401407980,1768188650685,-297.170586,0.0001773,2]
[401407981,1768188650693,-283.642245,0.0001773,2]
[401407982,1768188650702,-406.875021,0.0001773,2]
[401407983,1768188650711,-878.078272,0.0001773,2]
[401407984,1768188650719,-464.411102,0.0001773,2]
[401407985,1768188650727,-151.0,0.0001773,2]
[401407986,1768188650735,-406.875021,0.0001773,2]
[401407987,1768188650744,-878.078272,0.0001773,2]
[401407988,1768188650756,-464.411102,0.0001773,2]
[401407989,1768188650765,-214.643691,0.0001773,2]
[401407990,1768188650774,-406.875021,0.0001773,2]
[401407991,1768188650784,-151.0,0.0001773,2]
[401407992,1768188650793,-208.281146,0.0001773,2]
[401407993,1768188650802,-157.637598,0.0001773,2]
[401407994,1768188650811,-214.643691,0.0001773,2]
[401407995,1768188650820,-406.875021,0.0001773,2]
[401407996,1768188650831,-208.281146,0.0001773,2]
[401407997,1768188650840,-157.637598,0.0001773,2]
[401407998,1768188650849,-1680.772685,0.0001773,2]
[401407999,1768188650858,-214.643691,0.0001773,2]
[401408000,1768188650868,-208.281146,0.0001773,2]
[401408001,1768188650878,-157.637598,0.0001773,2]
[401408002,1768188650887,-214.643691,0.0001773,2]
[401408003,1768188650897,-1680.772685,0.0001773,2]
[401408004,1768188650906,-208.281146,0.0001773,2]
[401408005,1768188650915,-157.637598,0.0001773,2]
[401408006,1768188650925,-1680.772685,0.0001773,2]
[401408007,1768188650934,-1680.772685,0.0001773,2]
[401408008,1768188650944,-151.0,0.0001773,2]
[401408009,1768188650953,-897.996354,0.0001773,2]
[401408010,1768188650963,-151.0,0.0001773,2]
[401408011,1768188650972,-897.996354,0.0001773,2]
[401408012,1768188650982,-151.0,0.0001773,2]
[401408013,1768188650991,-897.996354,0.0001773,2]
[401408014,1768188651001,-897.996354,0.0001773,2]
[401408015,1768188651011,-2277.167351,0.0001773,2]
[401408016,1768188651021,-2139.417501,0.0001773,2]
[401408017,1768188651030,-2277.167351,0.0001773,2]
[401408018,1768188651039,-2139.417501,0.0001773,2]
[401408019,1768188651048,-2277.167351,0.0001773,2]
[401408020,1768188651057,-2139.417501,0.0001773,2]
[401408021,1768188651068,-2277.167351,0.0001773,2]
[401408022,1768188651078,-151.000016,0.0001773,2]
[401408023,1768188651090,-2139.417501,0.0001773,2]
[401408024,1768188651102,-151.0,0.0001773,2]
[401408025,1768188651112,-151.0,0.0001773,2]
[401408026,1768188651122,-151.0,0.0001773,2]
[401408027,1768188651132,-151.0,0.0001773,2]
[401408028,1768188651143,-151.0,0.0001773,2]
[401408029,1768188651154,-291.883143,0.0001773,2]
[401408030,1768188651163,-151.0,0.0001773,2]
[401408031,1768188651174,-291.883143,0.0001773,2]
[401408032,1768188651185,-151.0,0.0001773,2]
[401408033,1768188651194,-291.883143,0.0001773,2]
[401408034,1768188651204,-151.0,0.0001773,2]
[401408035,1768188651213,-291.883143,0.0001773,2]
[401408036,1768188651223,-211.915832,0.0001773,2]
[401408037,1768188651232,-4431.472038,0.0001773,2]
[401408038,1768188651242,-1888.793769,0.0001773,2]
[401408039,1768188651252,-211.915832,0.0001773,2]
[401408040,1768188651262,-2704.225356,0.0001773,2]
[401408041,1768188651272,-4431.472038,0.0001773,2]
[401408042,1768188651281,-151.0,0.0001773,2]
[401408043,1768188651291,-211.915832,0.0001773,2]
[401408044,1768188651302,-2704.225356,0.0001773,2]
[401408045,1768188651312,-1888.793769,0.0001773,2]
[401408046,1768188651321,-4431.472038,0.0001773,2]
[401408047,1768188651331,-151.0,0.0001773,2]
[401408048,1768188651341,-151.0,0.0001773,2]
[401408049,1768188651350,-211.915832,0.0001773,2]
[401408050,1768188651361,-2704.225356,0.0001773,2]
[401408051,1768188651371,-1888.793769,0.0001773,2]
[401408052,1768188651380,-4431.472038,0.0001773,2]
[401408053,1768188651391,-151.0,0.0001773,2]
[401408054,1768188651405,-151.0,0.0001773,2]
[401408055,1768188651415,-2704.225356,0.0001773,2]
[401408056,1768188651424,-1888.793769,0.0001773,2]
[401408057,1768188651434,-151.0,0.0001773,2]
[401408058,1768188651443,-151.0,0.0001773,2]
[401408059,1768188651452,-200.139122,0.0001773,2]
[401408060,1768188651461,-200.139122,0.0001773,2]
[401408061,1768188651470,-182.10784,0.0001773,2]
[401408062,1768188651480,-1755.980439,0.0001773,2]